[Event "Late-Titled-Tuesday-Blitz-October-10-2023"]
[Site "Chess.com"]
[Date "2023.10.10"]
[Round "9"]
[White "Baku_Boulevard"]
[Black "Hrant_ChessMood"]
[Result "1-0"]
[WhiteElo "3056"]
[BlackElo "2948"]
[TimeControl "180+1"]
[EndTime "15:40:40 PDT"]
[Termination "Baku_Boulevard won on time"]

1. e4 {[%clk 0:03:00.9]} 1... e5 {[%clk 0:02:59.5]} 2. Nf3 {[%clk 0:03:00.7]}
2... Nc6 {[%clk 0:03:00]} 3. Bc4 {[%clk 0:03:00.6]} 3... Nf6 {[%clk 0:03:00]} 4.
d3 {[%clk 0:03:00.1]} 4... Be7 {[%clk 0:02:57.3]} 5. Nc3 {[%clk 0:02:58.4]} 5...
d6 {[%clk 0:02:54.9]} 6. a4 {[%clk 0:02:57.5]} 6... O-O {[%clk 0:02:53.2]} 7.
O-O {[%clk 0:02:56.3]} 7... Na5 {[%clk 0:02:52.7]} 8. Ba2 {[%clk 0:02:55.8]}
8... c5 {[%clk 0:02:53.1]} 9. Re1 {[%clk 0:02:54.3]} 9... Nc6 {[%clk 0:02:53.3]}
10. Ne2 {[%clk 0:02:54.1]} 10... Be6 {[%clk 0:02:47.4]} 11. Ng3 {[%clk
0:02:54.3]} 11... Bxa2 {[%clk 0:02:42.6]} 12. Rxa2 {[%clk 0:02:54.3]} 12... g6
{[%clk 0:02:38.2]} 13. c3 {[%clk 0:02:53.4]} 13... Re8 {[%clk 0:02:35.2]} 14.
Ra1 {[%clk 0:02:49.8]} 14... Bf8 {[%clk 0:02:25.7]} 15. Qb3 {[%clk 0:02:44]}
15... Qd7 {[%clk 0:02:18.8]} 16. Bg5 {[%clk 0:02:42.7]} 16... Bg7 {[%clk
0:02:18.8]} 17. a5 {[%clk 0:02:42.2]} 17... a6 {[%clk 0:02:15.2]} 18. Nf1 {[%clk
0:02:41.5]} 18... h6 {[%clk 0:02:03.4]} 19. Bxf6 {[%clk 0:02:41.2]} 19... Bxf6
{[%clk 0:02:04.3]} 20. Ne3 {[%clk 0:02:41.2]} 20... Rab8 {[%clk 0:01:54.3]} 21.
Nd2 {[%clk 0:02:35.5]} 21... Bg5 {[%clk 0:01:44.1]} 22. Nd5 {[%clk 0:02:35.2]}
22... Ne7 {[%clk 0:01:32.5]} 23. Nxe7+ {[%clk 0:02:30.8]} 23... Bxe7 {[%clk
0:01:27.8]} 24. Nc4 {[%clk 0:02:30.9]} 24... Bg5 {[%clk 0:01:22.7]} 25. Rad1
{[%clk 0:02:20.5]} 25... Rbd8 {[%clk 0:01:20.5]} 26. Nb6 {[%clk 0:02:13.4]}
26... Qb5 {[%clk 0:01:15.7]} 27. Qa2 {[%clk 0:02:12.6]} 27... Kg7 {[%clk
0:01:11.6]} 28. Nd5 {[%clk 0:02:06.7]} 28... Rc8 {[%clk 0:01:06.6]} 29. g3
{[%clk 0:02:01.8]} 29... h5 {[%clk 0:01:06.2]} 30. h4 {[%clk 0:02:00.8]} 30...
Bd8 {[%clk 0:01:06.3]} 31. Ra1 {[%clk 0:02:01.2]} 31... Qxd3 {[%clk 0:00:48.8]}
32. Qa4 {[%clk 0:01:54]} 32... Qb5 {[%clk 0:00:47.2]} 33. Qxb5 {[%clk
0:01:48.4]} 33... axb5 {[%clk 0:00:48.1]} 34. a6 {[%clk 0:01:49.3]} 34... bxa6
{[%clk 0:00:48.1]} 35. Rxa6 {[%clk 0:01:50]} 35... Re6 {[%clk 0:00:32.6]} 36.
Ra7 {[%clk 0:01:50]} 36... g5 {[%clk 0:00:23.3]} 37. Re3 {[%clk 0:01:36.9]}
37... gxh4 {[%clk 0:00:20.8]} 38. Rf3 {[%clk 0:01:37.2]} 38... Bf6 {[%clk
0:00:16.1]} 39. gxh4 {[%clk 0:01:37]} 39... Rf8 {[%clk 0:00:15.5]} 40. Ne3
{[%clk 0:01:34.9]} 40... Kg6 {[%clk 0:00:14.1]} 41. Nf5 {[%clk 0:01:34.4]} 41...
Bd8 {[%clk 0:00:12.3]} 42. Rd7 {[%clk 0:01:33.8]} 42... Kh7 {[%clk 0:00:10.5]}
43. Kf1 {[%clk 0:01:29.9]} 43... Rf6 {[%clk 0:00:08.3]} 44. Ke2 {[%clk
0:01:29.6]} 44... c4 {[%clk 0:00:08.1]} 45. Rg3 {[%clk 0:01:25.8]} 45... Rg6
{[%clk 0:00:07.9]} 46. Rxg6 {[%clk 0:01:25.7]} 46... Kxg6 {[%clk 0:00:08.3]} 47.
Rxd6+ {[%clk 0:01:26.4]} 47... Kh7 {[%clk 0:00:05.9]} 48. Rh6+ {[%clk
0:01:24.4]} 48... Kg8 {[%clk 0:00:05.5]} 49. Rxh5 {[%clk 0:01:24.6]} 49... Re8
{[%clk 0:00:02.9]} 50. Ne3 {[%clk 0:01:07.8]} 50... b4 {[%clk 0:00:02.4]} 51.
Nxc4 {[%clk 0:01:07.5]} 51... Re6 {[%clk 0:00:03.1]} 52. Rxe5 {[%clk 0:01:07]}
52... bxc3 {[%clk 0:00:02.4]} 53. Rxe6 {[%clk 0:01:04.1]} 53... fxe6 {[%clk
0:00:02.7]} 54. bxc3 {[%clk 0:01:03.5]} 54... Bxh4 {[%clk 0:00:03.6]} 55. f4
{[%clk 0:01:03.2]} 55... Kf7 {[%clk 0:00:03.9]} 56. Ne5+ {[%clk 0:01:03.2]}
56... Ke8 {[%clk 0:00:04]} 57. c4 {[%clk 0:01:00.8]} 57... Bg3 {[%clk
0:00:03.8]} 58. Kf3 {[%clk 0:01:00.8]} 58... Be1 {[%clk 0:00:03.9]} 59. Nd3
{[%clk 0:01:00.9]} 59... Bc3 {[%clk 0:00:03.8]} 60. e5 {[%clk 0:01:01.3]} 60...
Bd4 {[%clk 0:00:03.7]} 61. Ke4 {[%clk 0:01:01.6]} 61... Bg1 {[%clk 0:00:04.1]}
62. Ne1 {[%clk 0:01:00.5]} 62... Ba7 {[%clk 0:00:03.5]} 63. Nf3 {[%clk 0:01:01]}
63... Ke7 {[%clk 0:00:04.1]} 64. Nd4 {[%clk 0:01:01.4]} 64... Kd7 {[%clk
0:00:04.5]} 65. Nb3 {[%clk 0:00:59.9]} 65... Bb6 {[%clk 0:00:04.3]} 66. c5
{[%clk 0:01:00.1]} 66... Bd8 {[%clk 0:00:04.7]} 67. Nd4 {[%clk 0:00:59.9]} 67...
Ba5 {[%clk 0:00:03.4]} 68. c6+ {[%clk 0:00:59.3]} 68... Ke7 {[%clk 0:00:04]} 69.
Nb5 {[%clk 0:00:59.2]} 69... Be1 {[%clk 0:00:03.8]} 70. Nd6 {[%clk 0:00:58.3]}
70... Ba5 {[%clk 0:00:03.2]} 71. Nb5 {[%clk 0:00:48.8]} 71... Bb6 {[%clk
0:00:03.2]} 72. Nd4 {[%clk 0:00:48.7]} 72... Ba5 {[%clk 0:00:02.2]} 73. f5
{[%clk 0:00:43]} 73... exf5+ {[%clk 0:00:02.3]} 74. Nxf5+ {[%clk 0:00:42.2]}
74... Ke6 {[%clk 0:00:03.2]} 75. Ne3 {[%clk 0:00:42.3]} 75... Bb6 {[%clk
0:00:03.1]} 76. Nd5 {[%clk 0:00:42.8]} 76... Ba5 {[%clk 0:00:03]} 77. Nf4+
{[%clk 0:00:43.1]} 77... Ke7 {[%clk 0:00:03.3]} 78. Kd5 {[%clk 0:00:43.7]} 78...
Bc7 {[%clk 0:00:02.4]} 79. Ne6 {[%clk 0:00:43.5]} 79... Bb6 {[%clk 0:00:02]} 80.
Nd4 {[%clk 0:00:43.6]} 80... Bc7 {[%clk 0:00:02.6]} 81. Nb5 {[%clk 0:00:43.6]}
81... Ba5 {[%clk 0:00:02.8]} 82. e6 {[%clk 0:00:44.2]} 82... Bb6 {[%clk
0:00:01.8]} 83. c7 {[%clk 0:00:43.9]} 83... Bxc7 {[%clk 0:00:01.7]} 84. Nxc7
{[%clk 0:00:44.1]} 1-0

[Event "Late-Titled-Tuesday-Blitz-October-10-2023"]
[Site "Chess.com"]
[Date "2023.10.10"]
[Round "9"]
[White "rezamahdavi2008"]
[Black "NFChess13"]
[Result "0-1"]
[WhiteElo "2853"]
[BlackElo "2659"]
[TimeControl "180+1"]
[EndTime "15:40:40 PDT"]
[Termination "NFChess13 won by resignation"]

1. e4 {[%clk 0:03:00.9]} 1... c5 {[%clk 0:02:58.6]} 2. Nf3 {[%clk 0:02:58.1]}
2... d6 {[%clk 0:02:58.8]} 3. d4 {[%clk 0:02:58.4]} 3... cxd4 {[%clk 0:02:59.7]}
4. Nxd4 {[%clk 0:02:59.3]} 4... Nf6 {[%clk 0:03:00.4]} 5. Nc3 {[%clk 0:02:59.9]}
5... a6 {[%clk 0:03:01.3]} 6. h3 {[%clk 0:02:54]} 6... e5 {[%clk 0:03:00.8]} 7.
Nf3 {[%clk 0:02:54.4]} 7... Be7 {[%clk 0:02:56]} 8. g4 {[%clk 0:02:53.9]} 8...
h6 {[%clk 0:02:52]} 9. Rg1 {[%clk 0:02:54.1]} 9... Be6 {[%clk 0:02:51.6]} 10. g5
{[%clk 0:02:44.1]} 10... hxg5 {[%clk 0:02:46.5]} 11. Nxg5 {[%clk 0:02:45]} 11...
Bd7 {[%clk 0:02:45.2]} 12. Bc4 {[%clk 0:02:30.4]} 12... Rf8 {[%clk 0:02:44.6]}
13. Qf3 {[%clk 0:02:22.4]} 13... Nc6 {[%clk 0:02:44]} 14. Be3 {[%clk 0:02:22.7]}
14... Nd4 {[%clk 0:02:36]} 15. Qd1 {[%clk 0:02:03.6]} 15... Rc8 {[%clk
0:02:33.5]} 16. Qd3 {[%clk 0:01:59.4]} 16... Rxc4 {[%clk 0:02:31]} 17. Qxc4
{[%clk 0:01:58.3]} 17... Nxc2+ {[%clk 0:02:30.7]} 18. Kd2 {[%clk 0:01:58.3]}
18... Nxa1 {[%clk 0:02:31.6]} 19. Rxa1 {[%clk 0:01:59.2]} 19... b5 {[%clk
0:02:18.2]} 20. Qb3 {[%clk 0:01:58.7]} 20... d5 {[%clk 0:02:14.8]} 21. exd5
{[%clk 0:01:56.1]} 21... b4 {[%clk 0:02:15.1]} 22. Nce4 {[%clk 0:01:52.6]} 22...
Bc6 {[%clk 0:02:12.6]} 23. Ke1 {[%clk 0:01:39.9]} 23... Qxd5 {[%clk 0:02:10.7]}
24. Qxd5 {[%clk 0:01:31.8]} 24... Nxd5 {[%clk 0:02:05.1]} 25. Rc1 {[%clk
0:01:29.1]} 25... Kd7 {[%clk 0:02:02.4]} 26. Bc5 {[%clk 0:01:24.2]} 26... f6
{[%clk 0:01:28.9]} 27. Bxe7 {[%clk 0:01:21.8]} 27... Nxe7 {[%clk 0:01:29.8]} 28.
Nc5+ {[%clk 0:01:21.6]} 28... Kd6 {[%clk 0:01:30.3]} 29. Nge6 {[%clk 0:01:13]}
29... Rh8 {[%clk 0:01:29.8]} 30. Nxg7 {[%clk 0:00:59.1]} 30... Rxh3 {[%clk
0:01:27.4]} 31. Kd2 {[%clk 0:00:58.6]} 31... Bb5 {[%clk 0:01:21.6]} 32. Ne4+
{[%clk 0:00:57.1]} 32... Kd7 {[%clk 0:01:08.9]} 33. Nxf6+ {[%clk 0:00:55.8]}
33... Kd6 {[%clk 0:01:09.4]} 34. Ne4+ {[%clk 0:00:51.9]} 34... Kd5 {[%clk
0:01:06]} 35. Nf6+ {[%clk 0:00:48.8]} 35... Kd6 {[%clk 0:01:04.9]} 36. b3 {[%clk
0:00:31.8]} 36... Rf3 {[%clk 0:01:01.2]} 37. Ng4 {[%clk 0:00:15.3]} 37... Rf4
{[%clk 0:01:00.2]} 38. Rg1 {[%clk 0:00:12.9]} 38... Nc6 {[%clk 0:00:56.2]} 39.
Ne8+ {[%clk 0:00:10.7]} 39... Kd7 {[%clk 0:00:40.7]} 40. Nef6+ {[%clk
0:00:07.5]} 40... Ke6 {[%clk 0:00:39.5]} 41. Nh5 {[%clk 0:00:07.1]} 41... Rf7
{[%clk 0:00:35.3]} 42. Ke1 {[%clk 0:00:02.3]} 42... Nd4 {[%clk 0:00:35.5]} 43.
Rg3 {[%clk 0:00:03]} 43... Nf3+ {[%clk 0:00:33.5]} 44. Kd1 {[%clk 0:00:02.8]}
44... Rd7+ {[%clk 0:00:32.5]} 45. Kc1 {[%clk 0:00:03.4]} 45... e4 {[%clk
0:00:32.2]} 46. Ne3 {[%clk 0:00:03.6]} 46... Rc7+ {[%clk 0:00:24.6]} 47. Kb2
{[%clk 0:00:03.7]} 47... Ne1 {[%clk 0:00:22.2]} 48. Nf4+ {[%clk 0:00:04]} 48...
Ke5 {[%clk 0:00:21]} 49. Rg5+ {[%clk 0:00:04.6]} 49... Kd6 {[%clk 0:00:17.1]}
50. Rg6+ {[%clk 0:00:04.7]} 50... Ke5 {[%clk 0:00:15.2]} 51. Rg5+ {[%clk
0:00:03.9]} 51... Kd6 {[%clk 0:00:14.2]} 52. Rd5+ {[%clk 0:00:04.7]} 52... Kc6
{[%clk 0:00:14]} 53. Rd4 {[%clk 0:00:05.4]} 53... Nd3+ {[%clk 0:00:13.9]} 54.
Nxd3 {[%clk 0:00:05.8]} 54... exd3 {[%clk 0:00:14.8]} 55. Kc1 {[%clk 0:00:05.6]}
55... Rf7 {[%clk 0:00:11.4]} 56. f4 {[%clk 0:00:03.9]} 56... Rh7 {[%clk
0:00:11.6]} 57. Nc4 {[%clk 0:00:02.9]} 57... Kc5 {[%clk 0:00:07.8]} 58. Rxd3
{[%clk 0:00:02.6]} 58... Bxc4 {[%clk 0:00:08]} 59. bxc4 {[%clk 0:00:03.5]} 59...
Kxc4 {[%clk 0:00:08.9]} 60. Rf3 {[%clk 0:00:04.3]} 60... Rh1+ {[%clk 0:00:07.6]}
61. Kd2 {[%clk 0:00:03.8]} 61... Rh2+ {[%clk 0:00:08.5]} 62. Ke3 {[%clk
0:00:04.4]} 62... Rxa2 {[%clk 0:00:09]} 63. f5 {[%clk 0:00:05.3]} 63... Ra3+
{[%clk 0:00:08.9]} 64. Ke4 {[%clk 0:00:05.9]} 64... Rxf3 {[%clk 0:00:09.4]} 65.
Kxf3 {[%clk 0:00:06.8]} 65... Kd5 {[%clk 0:00:10]} 66. f6 {[%clk 0:00:07.7]}
66... Ke6 {[%clk 0:00:10.2]} 0-1

[Event "Late-Titled-Tuesday-Blitz-October-10-2023"]
[Site "Chess.com"]
[Date "2023.10.10"]
[Round "9"]
[White "acertijo08"]
[Black "karwowskikacper"]
[Result "0-1"]
[WhiteElo "2408"]
[BlackElo "2547"]
[TimeControl "180+1"]
[EndTime "15:40:40 PDT"]
[Termination "karwowskikacper won by resignation"]

1. e4 {[%clk 0:03:00.9]} 1... c5 {[%clk 0:02:59.1]} 2. Nf3 {[%clk 0:03:00.4]}
2... e6 {[%clk 0:02:59.4]} 3. d4 {[%clk 0:03:00.4]} 3... cxd4 {[%clk 0:03:00.3]}
4. Nxd4 {[%clk 0:03:00.9]} 4... Nf6 {[%clk 0:03:00.9]} 5. Nc3 {[%clk 0:03:00.8]}
5... Nc6 {[%clk 0:03:01.3]} 6. Ndb5 {[%clk 0:03:00.6]} 6... Bb4 {[%clk
0:03:00.7]} 7. a3 {[%clk 0:02:58.4]} 7... Bxc3+ {[%clk 0:03:00.6]} 8. Nxc3
{[%clk 0:02:59.3]} 8... d5 {[%clk 0:03:01.5]} 9. exd5 {[%clk 0:02:59.1]} 9...
exd5 {[%clk 0:03:02.4]} 10. Bd3 {[%clk 0:02:58.9]} 10... O-O {[%clk 0:03:03]}
11. O-O {[%clk 0:02:58.7]} 11... d4 {[%clk 0:03:03.4]} 12. Ne2 {[%clk
0:02:58.4]} 12... Bg4 {[%clk 0:03:03.6]} 13. f3 {[%clk 0:02:58.3]} 13... Bh5
{[%clk 0:03:03.9]} 14. Nf4 {[%clk 0:02:53.6]} 14... Bg6 {[%clk 0:03:03.1]} 15.
Nxg6 {[%clk 0:02:53.8]} 15... hxg6 {[%clk 0:03:04]} 16. Re1 {[%clk 0:02:51.2]}
16... Qb6 {[%clk 0:02:57.2]} 17. Bd2 {[%clk 0:02:46.7]} 17... Rae8 {[%clk
0:02:55.8]} 18. b4 {[%clk 0:02:31.1]} 18... Nd5 {[%clk 0:02:55.4]} 19. Kh1
{[%clk 0:02:23.4]} 19... Ne3 {[%clk 0:02:52.5]} 20. Qc1 {[%clk 0:02:16.5]} 20...
Re7 {[%clk 0:02:37.3]} 21. c3 {[%clk 0:02:02.9]} 21... Rfe8 {[%clk 0:02:32.9]}
22. Be4 {[%clk 0:01:55.2]} 22... Nc4 {[%clk 0:02:12.8]} 23. Bxc6 {[%clk
0:01:35.2]} 23... Rxe1+ {[%clk 0:02:12.2]} 24. Bxe1 {[%clk 0:01:35.5]} 24...
Qxc6 {[%clk 0:02:12.4]} 25. cxd4 {[%clk 0:01:32.9]} 25... b5 {[%clk 0:02:12.1]}
26. Bf2 {[%clk 0:01:21.2]} 26... Re2 {[%clk 0:02:09.1]} 27. Kg1 {[%clk
0:01:17.4]} 27... Qd5 {[%clk 0:02:02.8]} 28. Qf4 {[%clk 0:01:10.2]} 28... a6
{[%clk 0:01:57.8]} 29. Re1 {[%clk 0:01:02.4]} 29... Rxe1+ {[%clk 0:01:55.3]} 30.
Bxe1 {[%clk 0:01:03.3]} 30... Nxa3 {[%clk 0:01:50.7]} 31. Qe4 {[%clk 0:01:02.2]}
31... Qxe4 {[%clk 0:01:11.7]} 32. fxe4 {[%clk 0:01:02.6]} 32... f5 {[%clk
0:01:09.6]} 33. e5 {[%clk 0:00:58.2]} 33... Nc2 {[%clk 0:01:09.3]} 34. Bc3
{[%clk 0:00:57.7]} 34... Ne3 {[%clk 0:01:08.7]} 35. Kf2 {[%clk 0:00:53.5]} 35...
Nd5 {[%clk 0:01:08.5]} 36. Bd2 {[%clk 0:00:53.8]} 36... Kf7 {[%clk 0:01:09.1]}
37. Kf3 {[%clk 0:00:46.6]} 37... Ke6 {[%clk 0:01:08.4]} 38. g4 {[%clk
0:00:45.1]} 38... Nc7 {[%clk 0:01:03.7]} 39. Kf4 {[%clk 0:00:42.2]} 39... Nd5+
{[%clk 0:00:58.4]} 40. Kg5 {[%clk 0:00:39.8]} 40... Ne7 {[%clk 0:00:53.8]} 41.
h4 {[%clk 0:00:35.3]} 41... Kd5 {[%clk 0:00:48]} 42. gxf5 {[%clk 0:00:28.5]}
42... gxf5 {[%clk 0:00:45.3]} 43. Be3 {[%clk 0:00:26.7]} 43... Ke4 {[%clk
0:00:43.2]} 44. Bf2 {[%clk 0:00:25.6]} 44... f4 {[%clk 0:00:37.5]} 45. h5 {[%clk
0:00:22.4]} 45... Kf3 {[%clk 0:00:35.2]} 46. Bh4 {[%clk 0:00:22.4]} 46... Ke3
{[%clk 0:00:30]} 47. e6 {[%clk 0:00:19.4]} 47... f3 {[%clk 0:00:29.8]} 48. h6
{[%clk 0:00:18.3]} 48... gxh6+ {[%clk 0:00:29.6]} 49. Kf6 {[%clk 0:00:18]} 49...
Nd5+ {[%clk 0:00:20.2]} 50. Ke5 {[%clk 0:00:18.3]} 50... Ne7 {[%clk 0:00:20.5]}
51. Be1 {[%clk 0:00:15.8]} 51... Nc6+ {[%clk 0:00:17.3]} 52. Kd5 {[%clk
0:00:15.5]} 52... Nxb4+ {[%clk 0:00:10.1]} 53. Kd6 {[%clk 0:00:16]} 53... Nc2
{[%clk 0:00:04.5]} 54. Bh4 {[%clk 0:00:15.4]} 54... Nxd4 {[%clk 0:00:04.3]} 55.
Ke5 {[%clk 0:00:13.8]} 55... Nc6+ {[%clk 0:00:02]} 56. Kd6 {[%clk 0:00:13.7]}
56... Nd4 {[%clk 0:00:02.4]} 57. Ke5 {[%clk 0:00:12.6]} 57... Nc6+ {[%clk
0:00:02.8]} 58. Kf6 {[%clk 0:00:12.8]} 58... Ke2 {[%clk 0:00:02.7]} 59. e7
{[%clk 0:00:12.8]} 59... Nxe7 {[%clk 0:00:02.8]} 60. Kxe7 {[%clk 0:00:13.4]}
60... f2 {[%clk 0:00:03.7]} 61. Bxf2 {[%clk 0:00:13.3]} 61... Kxf2 {[%clk
0:00:04.6]} 62. Kf6 {[%clk 0:00:14.2]} 62... b4 {[%clk 0:00:05.5]} 63. Kg6
{[%clk 0:00:15]} 63... b3 {[%clk 0:00:06.4]} 64. Kxh6 {[%clk 0:00:15.9]} 64...
b2 {[%clk 0:00:07.3]} 65. Kg5 {[%clk 0:00:16.8]} 65... b1=Q {[%clk 0:00:07.9]}
66. Kf6 {[%clk 0:00:17.1]} 66... Qb5 {[%clk 0:00:08.8]} 67. Ke6 {[%clk
0:00:17.4]} 67... a5 {[%clk 0:00:09.7]} 68. Ke7 {[%clk 0:00:17.9]} 68... a4
{[%clk 0:00:10.6]} 69. Kd6 {[%clk 0:00:18.8]} 69... a3 {[%clk 0:00:11.5]} 70.
Kc7 {[%clk 0:00:19.7]} 70... a2 {[%clk 0:00:12.4]} 71. Kd8 {[%clk 0:00:20.6]}
71... a1=Q {[%clk 0:00:12.8]} 0-1

[Event "Late-Titled-Tuesday-Blitz-October-10-2023"]
[Site "Chess.com"]
[Date "2023.10.10"]
[Round "9"]
[White "Denis_Makhnyov"]
[Black "Rodalquilar"]
[Result "0-1"]
[WhiteElo "2912"]
[BlackElo "2769"]
[TimeControl "180+1"]
[EndTime "15:40:41 PDT"]
[Termination "Rodalquilar won on time"]

1. d4 {[%clk 0:02:56.3]} 1... d5 {[%clk 0:03:00.2]} 2. c4 {[%clk 0:02:54.4]}
2... e6 {[%clk 0:03:00.6]} 3. Nf3 {[%clk 0:02:54.9]} 3... Nf6 {[%clk 0:03:00.8]}
4. g3 {[%clk 0:02:55.5]} 4... Be7 {[%clk 0:03:01.3]} 5. Bg2 {[%clk 0:02:55.4]}
5... O-O {[%clk 0:03:01.6]} 6. O-O {[%clk 0:02:56.3]} 6... dxc4 {[%clk
0:03:02.1]} 7. Qc2 {[%clk 0:02:56.6]} 7... a6 {[%clk 0:03:02.3]} 8. a4 {[%clk
0:02:56.9]} 8... Bd7 {[%clk 0:03:02.5]} 9. Qxc4 {[%clk 0:02:56.9]} 9... Bc6
{[%clk 0:03:02.9]} 10. Bg5 {[%clk 0:02:56.7]} 10... a5 {[%clk 0:03:03.2]} 11.
Nc3 {[%clk 0:02:56]} 11... Ra6 {[%clk 0:03:03.7]} 12. Rac1 {[%clk 0:02:43.7]}
12... Rb6 {[%clk 0:03:03.8]} 13. Nb5 {[%clk 0:02:43.8]} 13... Bxf3 {[%clk
0:03:00.5]} 14. Bxf3 {[%clk 0:02:43.5]} 14... c6 {[%clk 0:03:01]} 15. Nc3 {[%clk
0:02:43.6]} 15... Rxb2 {[%clk 0:02:59.5]} 16. Rb1 {[%clk 0:02:43.9]} 16... Rb4
{[%clk 0:02:56.4]} 17. Rxb4 {[%clk 0:02:43.9]} 17... axb4 {[%clk 0:02:56]} 18.
Na2 {[%clk 0:02:44.1]} 18... Qa5 {[%clk 0:02:49.2]} 19. Bxf6 {[%clk 0:02:38.7]}
19... gxf6 {[%clk 0:02:50.1]} 20. Qb3 {[%clk 0:02:38.3]} 20... Na6 {[%clk
0:01:51.8]} 21. Rb1 {[%clk 0:02:37]} 21... Qf5 {[%clk 0:01:34.2]} 22. Kg2 {[%clk
0:02:32.1]} 22... Rd8 {[%clk 0:01:22.1]} 23. e3 {[%clk 0:02:29.4]} 23... e5
{[%clk 0:01:16.1]} 24. Rd1 {[%clk 0:02:25.1]} 24... exd4 {[%clk 0:00:50.1]} 25.
exd4 {[%clk 0:02:26]} 25... Qa5 {[%clk 0:00:46]} 26. Kg1 {[%clk 0:02:25.4]}
26... Kf8 {[%clk 0:00:45]} 27. Be2 {[%clk 0:02:18]} 27... Nc7 {[%clk 0:00:40.3]}
28. Qe3 {[%clk 0:02:13.6]} 28... Qg5 {[%clk 0:00:38.8]} 29. Qd3 {[%clk
0:02:03.5]} 29... Kg7 {[%clk 0:00:33.7]} 30. Qb3 {[%clk 0:02:01.7]} 30... Qa5
{[%clk 0:00:29.1]} 31. Bc4 {[%clk 0:02:01.8]} 31... Nd5 {[%clk 0:00:28.5]} 32.
Re1 {[%clk 0:02:01.8]} 32... Bf8 {[%clk 0:00:26.9]} 33. Qf3 {[%clk 0:02:00.4]}
33... Qxa4 {[%clk 0:00:23]} 34. Bb3 {[%clk 0:01:57.5]} 34... Qa3 {[%clk
0:00:21.7]} 35. Re4 {[%clk 0:01:56]} 35... f5 {[%clk 0:00:14.4]} 36. Rh4 {[%clk
0:01:55.7]} 36... Be7 {[%clk 0:00:09.9]} 37. Rh5 {[%clk 0:01:55.7]} 37... Nf6
{[%clk 0:00:08.9]} 38. Rxf5 {[%clk 0:01:50]} 38... Rxd4 {[%clk 0:00:09.2]} 39.
Qe3 {[%clk 0:01:43.6]} 39... Rd7 {[%clk 0:00:08.7]} 40. Rf3 {[%clk 0:01:12.7]}
40... Qb2 {[%clk 0:00:09]} 41. Qg5+ {[%clk 0:01:12.9]} 41... Kf8 {[%clk
0:00:09.2]} 42. Kg2 {[%clk 0:01:08.6]} 42... Qd4 {[%clk 0:00:08.6]} 43. Rf4
{[%clk 0:00:58.2]} 43... Qd2 {[%clk 0:00:07.9]} 44. Nxb4 {[%clk 0:00:46]} 44...
Rd4 {[%clk 0:00:06.1]} 45. Qh6+ {[%clk 0:00:24.6]} 45... Ke8 {[%clk 0:00:06.4]}
46. Na2 {[%clk 0:00:13.8]} 46... Rxf4 {[%clk 0:00:06.5]} 47. gxf4 {[%clk
0:00:14.7]} 47... Nd5 {[%clk 0:00:06.7]} 48. Qxh7 {[%clk 0:00:09.8]} 48... Nxf4+
{[%clk 0:00:07.1]} 49. Kf3 {[%clk 0:00:10.3]} 49... Nd5 {[%clk 0:00:07.7]} 50.
Qh8+ {[%clk 0:00:10.1]} 50... Kd7 {[%clk 0:00:07.3]} 51. Qe5 {[%clk 0:00:10.7]}
51... Bd6 {[%clk 0:00:04.6]} 52. Qf5+ {[%clk 0:00:10.4]} 52... Ke7 {[%clk
0:00:05]} 53. h4 {[%clk 0:00:09]} 53... Nf4 {[%clk 0:00:03.5]} 54. Qxf7+ {[%clk
0:00:08.4]} 54... Kd8 {[%clk 0:00:04.2]} 55. Qf5 {[%clk 0:00:07.9]} 55... Qe2+
{[%clk 0:00:03.5]} 56. Kg3 {[%clk 0:00:08.4]} 56... Nd3+ {[%clk 0:00:03.9]} 57.
Kg2 {[%clk 0:00:06.8]} 57... Nf4+ {[%clk 0:00:02.7]} 58. Kg3 {[%clk 0:00:06.4]}
58... Nd3+ {[%clk 0:00:02.6]} 59. Kg2 {[%clk 0:00:06.9]} 59... Ne1+ {[%clk
0:00:03.2]} 60. Kg1 {[%clk 0:00:07.1]} 60... Nf3+ {[%clk 0:00:03.1]} 61. Kg2
{[%clk 0:00:07.1]} 61... Nxh4+ {[%clk 0:00:03.6]} 62. Kh3 {[%clk 0:00:07.7]}
62... Nxf5 {[%clk 0:00:04.5]} 63. Bc4 {[%clk 0:00:08.2]} 63... Qxc4 {[%clk
0:00:04.2]} 0-1